fUST/lending_fUST_20240805
["ID","MTS","AMOUNT","RATE_DAILY","PERIOD"]
[334239055,1722853847718,-500.0,0.00041095,31]
[334239056,1722853847727,-3974.69,0.00041095,31]
[334239057,1722853847737,-1189.91,0.00041095,31]
[334239058,1722853847746,-500.0,0.00041095,31]
[334239059,1722853847755,-500.0,0.00041095,31]
[334239060,1722853847765,-1326.48,0.00041095,31]
[334239061,1722853847773,-500.0,0.00041095,31]
[334239062,1722853847783,-16018.78,0.00041095,120]
[334239063,1722853847793,-500.0,0.00041095,31]
[334239064,1722853847802,-2584.74,0.00041095,31]
[334239065,1722853847812,-500.0,0.00041095,31]
[334239066,1722853847833,-1511.92,0.00041095,31]
[334239067,1722853847843,-723.15,0.00041095,31]
[334239068,1722853847851,-152.12,0.000414,31]
[334239069,1722853847860,-152.12,0.000414,31]
[334239070,1722853847872,-152.12,0.000414,31]
[334239071,1722853847884,-152.12,0.000414,31]
[334239072,1722853847894,-152.12,0.000414,31]
[334239073,1722853847906,-152.12,0.000414,31]
[334239074,1722853847917,-152.12,0.000414,31]
[334239075,1722853847926,-152.12,0.000414,31]
[334239076,1722853847938,-152.12,0.000414,31]
[334239077,1722853847947,-152.12,0.000414,31]
[334239078,1722853847957,-152.12,0.000414,31]
[334239079,1722853847967,-152.12,0.000414,31]
[334239080,1722853847978,-485.9435946,0.00041543,28]
[334239081,1722853847987,-151.0,0.00041643,14]
[334239082,1722853847997,-500.0,0.00041643,31]
[334239083,1722853848006,-500.0,0.00041643,31]
[334239084,1722853848015,-907.418775,0.00041643,14]
[334239085,1722853848027,-907.418775,0.00041643,14]
[334239086,1722853848048,-640.18,0.00041643,31]
[334239087,1722853848071,-369.77249009,0.00041643,31]
[334239088,1722853848093,-3896.24,0.00041643,31]
[334239089,1722853848117,-2635.56,0.00041643,31]
[334239090,1722853848140,-255.835905,0.00041643,14]
[334239091,1722853848166,-507.3,0.00041643,31]
[334239092,1722853848185,-255.835905,0.00041643,14]
[334239093,1722853848199,-801.86,0.00041643,31]
[334239094,1722853848215,-500.0,0.00041643,31]
[334239095,1722853848228,-500.0,0.00041643,31]
[334239096,1722853848238,-340.20812402,0.00041643,31]
[334239097,1722853848247,-500.0,0.00041643,31]
[334239098,1722853848256,-500.0,0.00041643,31]
[334239099,1722853848266,-500.0,0.00041643,31]
[334239100,1722853848275,-500.0,0.00041643,31]
[334239101,1722853848285,-2842.53,0.00041643,31]
[334239102,1722853848294,-500.0,0.00041643,31]
[334239103,1722853848303,-3006.45,0.00041643,31]
[334239104,1722853848312,-823.91,0.00041643,31]
[334239105,1722853848322,-500.0,0.00041643,31]
[334239106,1722853848331,-500.0,0.00041643,30]
[334239107,1722853848341,-500.0,0.00041643,31]
[334239108,1722853848352,-513.03385248,0.00041643,31]
[334239109,1722853848361,-500.0,0.00041643,31]
[334239110,1722853848375,-1338.76,0.00041643,31]
[334239111,1722853848384,-500.0,0.00041643,31]
[334239112,1722853848394,-500.0,0.00041643,31]
[334239113,1722853848404,-750.51,0.00041643,31]
[334239114,1722853848415,-500.0,0.00041643,31]
[334239115,1722853848424,-500.0,0.00041643,31]
[334239116,1722853848434,-500.0,0.00041643,31]
[334239117,1722853848445,-1378.72,0.00041643,31]
[334239118,1722853848455,-521.58,0.00041643,31]
[334239119,1722853848464,-529.02,0.00041643,31]
[334239120,1722853848475,-500.0,0.00041643,31]
[334239121,1722853848485,-10332.52,0.00041643,31]
[334239122,1722853848495,-500.0,0.00041643,31]
[334239123,1722853848504,-500.0,0.00041643,31]
[334239124,1722853848514,-500.0,0.00041643,31]
[334239125,1722853848525,-1176.11,0.00041643,31]
[334239126,1722853848535,-500.0,0.00041643,31]
[334239127,1722853848546,-500.0,0.00041643,31]
[334239128,1722853848555,-275.2689833,0.00041643,31]
[334239129,1722853848565,-1163.83,0.00041643,31]
[334239130,1722853848575,-500.0,0.00041643,31]
[334239131,1722853848584,-504.601849,0.00041643,14]
[334239132,1722853848593,-724.57,0.00041643,31]
[334239133,1722853848602,-504.601849,0.00041643,14]
[334239134,1722853848611,-1022.7,0.00041643,31]
[334239135,1722853848621,-523.42,0.00041643,31]
[334239136,1722853848630,-1420.87,0.00041643,31]
[334239137,1722853848639,-1403.87,0.00041643,31]
[334239138,1722853848649,-500.0,0.00041643,31]
[334239139,1722853848658,-500.0,0.00041643,31]
[334239140,1722853848667,-500.0,0.00041643,31]
[334239141,1722853848677,-500.0,0.00041643,31]
[334239143,1722853848687,-803.77,0.00041643,31]
[334239145,1722853848696,-500.0,0.00041643,31]
[334239146,1722853848706,-500.0,0.00041643,31]
[334239147,1722853848715,-500.0,0.00041643,31]
[334239148,1722853848724,-500.0,0.00041643,31]
[334239149,1722853848733,-500.0,0.00041643,31]
[334239150,1722853848743,-500.0,0.00041643,31]
[334239151,1722853848752,-568.86778112,0.00041643,31]
[334239152,1722853848761,-1864.63,0.00041643,31]
[334239153,1722853848771,-1122.02,0.00041643,31]
[334239154,1722853848781,-500.0,0.00041643,31]
[334239155,1722853848791,-500.0,0.00041643,31]
[334239156,1722853848801,-953.01,0.00041643,31]
[334239157,1722853848810,-943.67,0.00041643,31]
[334239158,1722853848820,-500.0,0.00041643,31]
[334239159,1722853848829,-500.0,0.00041643,31]
[334239160,1722853848838,-1052.26,0.00041643,31]
[334239161,1722853848847,-500.0,0.00041643,31]
[334239162,1722853848856,-488.51751897,0.00041643,31]
[334239163,1722853848866,-500.0,0.00041643,31]
[334239164,1722853848875,-7208.78,0.00041643,31]
[334239165,1722853848884,-500.0,0.00041643,31]
[334239166,1722853848894,-915.37923851,0.00041643,31]
[334239191,1722853865703,-483.9570004,0.00041643,31]
[334239192,1722853865852,-1150.979585,0.00041643,31]
[334239193,1722853865997,-5531.14417609,0.00041643,31]
[334239194,1722853866008,-500.0,0.00041643,31]
[334239195,1722853866017,-5257.15,0.00041643,31]
[334239196,1722853866028,-694.56,0.00041643,31]
[334239197,1722853866040,-250.99232814,0.00041643,31]
[334239198,1722853866050,-4154.8,0.00041643,31]
[334239199,1722853866061,-500.0,0.00041643,31]
[334239200,1722853866070,-500.0,0.00041643,31]
[334239201,1722853866081,-500.0,0.00041643,31]
[334239202,1722853866092,-520.48432204,0.00041643,31]
[334239203,1722853866102,-651.39,0.00041643,31]
[334239204,1722853866113,-647.81,0.00041643,31]
[334239205,1722853866125,-500.0,0.00041643,31]
[334239206,1722853866136,-500.0,0.00041643,31]
[334239207,1722853866148,-500.0,0.00041643,31]
[334239208,1722853866161,-406.08675883,0.00041643,31]
[334239209,1722853866175,-500.0,0.00041643,31]
[334239210,1722853866188,-3974.69,0.00041643,31]
[334239211,1722853866199,-1189.91,0.00041643,31]
[334239212,1722853866210,-500.0,0.00041643,31]
[334239213,1722853866221,-153.663288,0.00041643,14]
[334239214,1722853866232,-500.0,0.00041643,31]
[334239215,1722853866244,-1326.48,0.00041643,31]
[334239216,1722853866255,-500.0,0.00041643,31]
[334239217,1722853866266,-16018.78,0.00041643,120]
[334239218,1722853866277,-500.0,0.00041643,31]
[334239219,1722853866289,-2584.74,0.00041643,31]
[334239220,1722853866301,-511.53310582,0.00041643,31]
[334239221,1722853866311,-1511.92,0.00041643,31]
[334239222,1722853866322,-723.15,0.00041643,31]
[334239223,1722853866333,-4382.15855472,0.00041678,2]
[334239224,1722853866344,-4382.15855472,0.00042134,2]
[334239225,1722853866357,-500.0,0.00042191,31]
[334239226,1722853866368,-500.0,0.00042191,31]
[334239227,1722853866381,-1288.15,0.00042191,31]
[334239228,1722853866393,-500.0,0.00042191,31]
[334239229,1722853866405,-500.0,0.00042191,31]
[334239230,1722853866424,-1052.26,0.00042191,31]
[334239231,1722853866436,-7111.98,0.00042191,31]
[334239232,1722853866447,-500.0,0.00042191,31]
[334239233,1722853866459,-787.74,0.00042191,31]
[334239234,1722853866470,-500.0,0.00042191,31]
[334239235,1722853866480,-169.30322264,0.00042191,31]
[334239236,1722853866489,-500.0,0.00042191,31]
[334239237,1722853866500,-500.0,0.00042191,31]
[334239238,1722853866511,-500.0,0.00042191,31]
[334239239,1722853866522,-500.0,0.00042191,31]
[334239240,1722853866534,-503.17,0.00042191,31]
[334239241,1722853866545,-365.32748004,0.00042191,31]
[334239242,1722853866557,-500.0,0.00042191,31]
[334239243,1722853866569,-500.0,0.00042191,31]
[334239244,1722853866581,-500.0,0.00042191,20]
[334239245,1722853866593,-500.0,0.00042191,31]
[334239246,1722853866605,-507.54,0.00042191,31]
[334239247,1722853866617,-502.17559898,0.00042191,31]
[334239248,1722853866627,-500.0,0.00042191,31]
[334239249,1722853866640,-907.249179,0.00042191,14]
[334239250,1722853866651,-500.0,0.00042191,31]
[334239251,1722853866672,-907.249179,0.00042191,14]
[334239252,1722853866683,-581.74,0.00042191,31]
[334239253,1722853866695,-500.0,0.00042191,31]
[334239254,1722853866708,-500.0,0.00042191,31]
[334239255,1722853866720,-500.0,0.00042191,31]
[334239256,1722853866732,-500.0,0.00042191,31]
[334239257,1722853866743,-500.0,0.00042191,31]
[334239258,1722853866753,-959.83,0.00042191,31]
[334239259,1722853866764,-500.0,0.00042191,31]
[334239260,1722853866774,-500.0,0.00042191,31]
[334239261,1722853866785,-507.00408539,0.00042191,31]
[334239262,1722853866796,-500.0,0.00042191,31]
[334239263,1722853866807,-500.0,0.00042191,31]
[334239264,1722853866818,-500.0,0.00042191,31]
[334239265,1722853866829,-500.0,0.00042191,31]
[334239266,1722853866841,-439.86231976,0.00042191,31]
[334239267,1722853866853,-581.16,0.00042191,31]
[334239268,1722853866865,-500.0,0.00042191,31]
[334239269,1722853866876,-500.0,0.00042191,31]
[334239270,1722853866888,-500.0,0.00042191,31]
[334239271,1722853866899,-508.65943508,0.00042191,31]
[334239272,1722853866917,-500.0,0.00042191,31]
[334239273,1722853866927,-504.86,0.00042191,31]
[334239274,1722853866937,-500.0,0.00042191,31]
[334239275,1722853866948,-603.360278,0.00042191,14]
[334239276,1722853866960,-590.49,0.00042191,31]
[334239277,1722853866970,-500.0,0.00042191,31]
[334239278,1722853866981,-603.360278,0.00042191,14]
[334239279,1722853866991,-500.0,0.00042191,31]
[334239280,1722853867001,-151.0,0.00042191,14]
[334239281,1722853867012,-500.0,0.00042191,31]
[334239282,1722853867023,-907.418775,0.00042191,14]
[334239283,1722853867033,-907.418775,0.00042191,14]
[334239284,1722853867043,-640.18,0.00042191,31]
[334239285,1722853867054,-3896.24,0.00042191,31]
[334239286,1722853867065,-2635.56,0.00042191,31]
[334239287,1722853867075,-255.835905,0.00042191,14]
[334239288,1722853867086,-151.0,0.00042191,14]
[334239289,1722853867097,-507.3,0.00042191,31]
[334239290,1722853867107,-255.835905,0.00042191,14]
[334239291,1722853867117,-801.86,0.00042191,31]
[334239292,1722853867128,-500.0,0.00042191,31]
[334239293,1722853867138,-500.0,0.00042191,31]
[334239294,1722853867148,-500.0,0.00042191,31]
[334239295,1722853867164,-500.0,0.00042191,31]
[334239296,1722853867175,-500.0,0.00042191,31]
[334239297,1722853867186,-500.0,0.00042191,31]
[334239298,1722853867196,-2842.53,0.00042191,31]
[334239299,1722853867207,-500.0,0.00042191,31]
[334239300,1722853867217,-3006.45,0.00042191,31]
[334239301,1722853867228,-823.91,0.00042191,31]
[334239302,1722853867238,-500.0,0.00042191,31]
[334239303,1722853867249,-367.69209888,0.00042191,30]
[334239304,1722853867260,-504.36152821,0.00042191,31]
[334239305,1722853867271,-500.0,0.00042191,31]
[334239306,1722853867281,-1338.76,0.00042191,31]
[334239307,1722853867292,-500.0,0.00042191,31]
[334239308,1722853867303,-500.0,0.00042191,31]
[334239309,1722853867314,-750.51,0.00042191,31]
[334239310,1722853867326,-1150.043206,0.00042191,14]
[334239311,1722853867337,-500.0,0.00042191,31]
[334239312,1722853867347,-500.0,0.00042191,31]
[334239313,1722853867362,-500.0,0.00042191,31]
[334239314,1722853867373,-1378.72,0.00042191,31]
[334239315,1722853867384,-1150.043206,0.00042191,14]
[334239316,1722853867395,-521.58,0.00042191,31]
[334239317,1722853867407,-529.02,0.00042191,31]
[334239318,1722853867426,-500.0,0.00042191,31]
[334239319,1722853867439,-10332.52,0.00042191,31]
[334239320,1722853867450,-500.0,0.00042191,31]
[334239321,1722853867461,-500.0,0.00042191,31]
[334239322,1722853867473,-500.0,0.00042191,31]
[334239323,1722853867484,-1176.11,0.00042191,31]
[334239324,1722853867494,-500.0,0.00042191,31]
[334239325,1722853867505,-362.17109827,0.00042191,31]
[334239326,1722853867516,-1163.83,0.00042191,31]
[334239327,1722853867527,-500.0,0.00042191,31]
[334239328,1722853867539,-504.601849,0.00042191,14]
[334239329,1722853867551,-724.57,0.00042191,31]
[334239330,1722853867562,-504.601849,0.00042191,14]
[334239331,1722853867573,-5000.0,0.00042191,30]
[334239332,1722853867584,-1022.7,0.00042191,31]
[334239333,1722853867596,-523.42,0.00042191,31]
[334239334,1722853867607,-1420.87,0.00042191,31]
[334239335,1722853867617,-1403.87,0.00042191,31]
[334239336,1722853867628,-500.0,0.00042191,31]
[334239337,1722853867638,-500.0,0.00042191,31]
[334239338,1722853867649,-500.0,0.00042191,31]
[334239339,1722853867667,-500.0,0.00042191,31]
[334239340,1722853867678,-803.77,0.00042191,31]
[334239341,1722853867688,-500.0,0.00042191,31]
[334239342,1722853867699,-598.31583488,0.00042191,31]
[334239343,1722853867709,-500.0,0.00042191,31]
[334239344,1722853867719,-500.0,0.00042191,31]
[334239345,1722853867729,-500.0,0.00042191,31]
[334239346,1722853867740,-500.0,0.00042191,31]
[334239347,1722853867750,-1864.63,0.00042191,31]
[334239348,1722853867761,-1122.02,0.00042191,31]
[334239349,1722853867771,-500.0,0.00042191,31]
[334239350,1722853867782,-500.0,0.00042191,31]
[334239351,1722853867792,-953.01,0.00042191,31]
[334239352,1722853867802,-943.67,0.00042191,31]
[334239353,1722853867812,-500.0,0.00042191,31]
[334239354,1722853867822,-500.0,0.00042191,31]
[334239355,1722853867833,-1052.26,0.00042191,31]
[334239356,1722853867843,-429.41671686,0.00042191,31]
[334239357,1722853867854,-500.0,0.00042191,31]
[334239358,1722853867864,-7208.78,0.00042191,31]
[334239359,1722853867874,-500.0,0.00042191,31]
[334239360,1722853867885,-8081.46,0.00042191,31]
[334239361,1722853867894,-500.0,0.00042191,31]
[334239362,1722853867904,-5257.15,0.00042191,31]
[334239363,1722853867922,-694.56,0.00042191,31]
[334239364,1722853867931,-4154.8,0.00042191,31]
[334239365,1722853867941,-500.0,0.00042191,31]
[334239366,1722853867951,-500.0,0.00042191,31]
[334239367,1722853867960,-207.21727553,0.00042191,31]
[334239368,1722853867969,-651.39,0.00042191,31]
[334239369,1722853867979,-647.81,0.00042191,31]
[334239370,1722853867989,-500.0,0.00042191,31]
[334239371,1722853867998,-500.0,0.00042191,31]
[334239372,1722853868008,-500.0,0.00042191,31]
[334239373,1722853868017,-237.81288385,0.00042191,31]
[334239374,1722853868027,-3974.69,0.00042191,31]
[334239375,1722853868036,-1189.91,0.00042191,31]
[334239376,1722853868046,-500.0,0.00042191,31]
[334239377,1722853868056,-500.0,0.00042191,31]
[334239378,1722853868066,-1326.48,0.00042191,31]
[334239379,1722853868075,-500.0,0.00042191,31]
[334239380,1722853868085,-16018.78,0.00042191,120]
[334239381,1722853868097,-500.0,0.00042191,31]
[334239382,1722853868107,-2584.74,0.00042191,31]
[334239383,1722853868117,-1511.92,0.00042191,31]
[334239384,1722853868128,-723.15,0.00042191,31]
[334239385,1722853868137,-419.22,0.000422,14]
[334239386,1722853868147,-7238.3,0.000422,14]
[334239387,1722853868157,-351.83,0.000422,30]
[334239388,1722853868432,-312.63243902,0.0004234,2]
[334239389,1722853868444,-1675.03067934,0.000424,120]
[334239390,1722853868454,-151.0,0.00042423,31]
[334239391,1722853868464,-151.0,0.00042423,31]
[334239392,1722853868473,-160.0,0.00042432,3]
[334239393,1722853868482,-160.0,0.00042432,5]
[334239394,1722853868491,-5428.38744896,0.0004244,15]
[334239395,1722853868506,-10288.9,0.0004244,15]
[334239396,1722853868521,-1999.98674099,0.0004244,15]
[334239397,1722853868533,-657.14970041,0.0004244,15]
[334239398,1722853868739,-6506.23323221,0.0004244,15]
[334239399,1722853868749,-183.0,0.0004244,30]
[334239400,1722853868759,-5190.68254464,0.0004244,30]
[334239401,1722853868955,-585.54441495,0.0004244,30]
[334239402,1722853869186,-5295.36,0.0004244,30]
[334239403,1722853869198,-791.2784889,0.0004244,30]
[334239404,1722853869428,-12895.09368321,0.0004244,30]
[334239405,1722853869440,-367062.41976752,0.0004244,30]
[334239406,1722853869537,-500.0,0.00041095,31]
[334239407,1722853869547,-1517.76834,0.0004244,30]
[334239408,1722853870473,-11271.21192089,0.0004244,30]
[334239409,1722853870483,-151.0,0.0004244,14]
[334239410,1722853870493,-301.926551,0.0004244,14]
[334239411,1722853870503,-151.0,0.0004244,14]
[334239412,1722853870512,-151.0,0.0004244,14]
[334239413,1722853870522,-151.0,0.0004244,14]
[334239414,1722853870531,-151.0,0.0004244,14]
[334239415,1722853870541,-151.0,0.0004244,14]
[334239416,1722853870551,-246.500666,0.0004244,14]
[334239417,1722853870560,-246.500666,0.0004244,14]
[334239418,1722853870570,-170.649318,0.0004244,14]
[334239419,1722853870580,-170.649318,0.0004244,14]
[334239420,1722853870590,-151.0,0.0004244,14]
[334239421,1722853870600,-163.230576,0.0004244,14]
[334239422,1722853870610,-163.230576,0.0004244,14]
[334239423,1722853870620,-151.0,0.0004244,14]
[334239424,1722853870630,-2404.393614,0.0004244,14]
[334239425,1722853870639,-15.55069011,0.0004244,14]
[334239426,1722853873454,-500.0,0.00041643,31]
[334239427,1722853873466,-135.44930989,0.0004244,14]
[334239428,1722853873478,-151.0,0.0004244,14]
[334239429,1722853873489,-151.0,0.0004244,14]
[334239430,1722853873500,-933.41638,0.0004244,14]
[334239431,1722853873511,-933.41638,0.0004244,14]
[334239432,1722853873522,-151.0,0.0004244,14]
[334239433,1722853873532,-151.0,0.0004244,14]
[334239434,1722853873544,-483.027942,0.0004244,14]
[334239435,1722853873554,-151.0,0.0004244,14]
[334239436,1722853873564,-483.027942,0.0004244,14]
[334239437,1722853873574,-1243.584411,0.0004244,14]
[334239438,1722853873583,-1243.584411,0.0004244,14]
[334239439,1722853873593,-321.21275,0.0004244,14]
[334239440,1722853873603,-321.21275,0.0004244,14]
[334239441,1722853873612,-277.289582,0.0004244,14]
[334239442,1722853873622,-277.289582,0.0004244,14]
[334239443,1722853873632,-151.0,0.0004244,14]
[334239444,1722853873642,-907.249179,0.0004244,14]
[334239445,1722853873652,-907.249179,0.0004244,14]
[334239446,1722853873667,-603.360278,0.0004244,14]
[334239447,1722853873677,-603.360278,0.0004244,14]
[334239448,1722853873687,-155.644938,0.0004244,14]
[334239449,1722853873697,-907.418775,0.0004244,14]
[334239450,1722853873707,-907.418775,0.0004244,14]
[334239451,1722853873718,-255.835905,0.0004244,14]
[334239452,1722853873728,-151.0,0.0004244,14]
[334239453,1722853873738,-255.835905,0.0004244,14]
[334239454,1722853873748,-1150.043206,0.0004244,14]
[334239455,1722853873762,-1150.043206,0.0004244,14]
[334239456,1722853873771,-504.601849,0.0004244,14]
[334239457,1722853873781,-504.601849,0.0004244,14]
[334239458,1722853873791,-152.0,0.00042441,31]
[334239459,1722853873801,-152.0,0.00042441,31]
[334239460,1722853873811,-151.0,0.00042493,120]
[334239461,1722853873821,-1000.0,0.000425,2]
[334239462,1722853873831,-3000.0,0.000425,30]
[334239463,1722853873842,-1229.48295503,0.000425,120]
[334239464,1722853873852,-5112.575,0.0004264,120]
[334239465,1722853873862,-151.0,0.00042658,120]
[334239466,1722853873872,-2039.6,0.00042739,31]
[334239467,1722853873881,-500.0,0.00042739,31]
[334239468,1722853873891,-500.0,0.00042739,2]
[334239469,1722853873902,-151.0,0.00042739,14]
[334239470,1722853873913,-301.926551,0.00042739,14]
[334239471,1722853873926,-301.926551,0.00042739,14]
[334239472,1722853873935,-500.0,0.00042739,31]
[334239473,1722853873952,-500.0,0.00042739,31]
[334239474,1722853873961,-500.0,0.00042739,31]
[334239475,1722853873971,-500.0,0.00042739,31]
[334239476,1722853873981,-157.722398,0.00042739,14]
[334239477,1722853873992,-151.0,0.00042739,14]
[334239478,1722853874002,-500.0,0.00042739,31]
[334239479,1722853874012,-500.0,0.00042739,31]
[334239480,1722853874022,-500.0,0.00042739,31]
[334239481,1722853874032,-500.0,0.00042739,31]
[334239482,1722853874041,-342.33704408,0.00042739,31]
[334239485,1722854827141,-219.343995,0.00014247,2]
[334239486,1722854827167,-161.182861,0.00014247,2]
[334239487,1722854827191,-3087.63872233,0.00019547,2]
[334239488,1722854827219,-1449.1659141,0.00019547,7]
[334239489,1722854827242,-168.878791,0.00019869,2]
[334239490,1722854827263,-1345.94638291,0.00019999,3]
[334239491,1722854827286,-1610.68802731,0.00019999,2]
[334239492,1722854827309,-250.0,0.00020046,2]
[334239493,1722854827333,-1500.0,0.0002028,2]
[334239494,1722854827356,-1500.0,0.0002028,2]
[334239495,1722854827379,-294.09032939,0.00020721,2]
[334239496,1722854827402,-425.20064524,0.0002092,2]
[334239497,1722854827424,-20759.5327798,0.00020998,2]
[334239498,1722854827448,-3000.0,0.00021,2]
[334239499,1722854827472,-3000.0,0.0002101,2]
[334239500,1722854827495,-3000.0,0.0002102,2]
[334239501,1722854827520,-5463.12488,0.0002103,2]
[334239502,1722854827543,-341.21408671,0.0002142,2]
[334239503,1722854827570,-2059.34554009,0.00021542,2]
[334239504,1722854827594,-419.4879444,0.00021542,2]
[334239505,1722854827616,-154.89925365,0.00021589,2]
[334239506,1722854827638,-808.0041696,0.00021589,2]
[334239507,1722854827661,-845.54644341,0.00021591,2]
[334239508,1722854827683,-209.20156569,0.00021591,2]
[334239509,1722854827706,-2138.84815515,0.00021591,2]
[334239510,1722854827728,-7773.90428076,0.00021591,2]
[334239511,1722854827750,-250.3410689,0.00021916,2]
[334239512,1722854827771,-200.0,0.00024658,15]
[334239513,1722854827793,-269.33883528,0.00025,2]
[334239514,1722854827816,-425.20064524,0.00025694,2]
[334239515,1722854827837,-402.3465429,0.00026604,2]
[334239516,1722854827859,-402.3465429,0.00026604,2]
[334239517,1722854827880,-160.54991199,0.00026639,2]
[334239518,1722854827902,-881.47696693,0.00026646,2]
[334239519,1722854827926,-151.0,0.0003,120]
[334239520,1722854827949,-4371.72997302,0.00030303,4]
[334239923,1722855038384,-219.343995,0.00014247,2]
[334239924,1722855038395,-1162.86940617,0.00019147,2]
[334239925,1722855038405,-20759.5327798,0.00019256,2]
[334239927,1722855038418,-341.21408671,0.00021048,2]
[334239928,1722855038428,-419.4879444,0.00021805,2]
[334239929,1722855038438,-1610.68802731,0.00021805,2]
[334239930,1722855038448,-294.09032939,0.00021805,2]
[334239931,1722855038457,-3087.63872233,0.00021906,2]
[334239932,1722855038467,-160.54991199,0.00026599,2]
[334239933,1722855038476,-160.54991199,0.00026599,2]
[334239934,1722855038487,-881.47696693,0.00026839,2]
[334239935,1722855038497,-150.0,0.0003018,14]
[334239936,1722855038716,-150.0,0.0003018,14]
[334239937,1722855038726,-200.0,0.0003018,14]
[334239938,1722855038736,-5617.49765274,0.00030303,4]
[334239939,1722855038745,-254.63533274,0.00030303,4]
[334239940,1722855038756,-9264.38894348,0.00030303,7]
[334239941,1722855038766,-1225.97589647,0.00030303,2]
[334239942,1722855038776,-284.83809153,0.00030303,3]
[334239944,1722855038785,-151.0,0.0003126,120]
[334239945,1722855038794,-161.182861,0.00031781,2]
[334239946,1722855038803,-151.0,0.00032521,120]
[334239947,1722855038814,-200.0,0.00032531,15]
[334239948,1722855038823,-151.0,0.00033781,120]
[334239949,1722855038832,-151.0,0.00035041,120]
[334239950,1722855038842,-153.0,0.00035999,2]
[334239951,1722855038851,-151.0,0.00036301,120]
[334239952,1722855038860,-1328.85468699,0.0003673,4]
[334239953,1722855038870,-151.0,0.00037562,120]
[334239954,1722855038880,-151.0,0.00038822,120]
[334239955,1722855038890,-168.878791,0.00039477,2]
[334239956,1722855038899,-10225.15,0.000398,120]
[334239957,1722855038908,-2500.0,0.000399,120]
[334239958,1722855038920,-5000.0,0.0004,40]
[334239959,1722855038929,-2267.1841653,0.0004,2]
[334239960,1722855038938,-200.0,0.0004,2]
[334239961,1722855038948,-151.0,0.00040082,120]
[334239962,1722855038958,-7223.5661184,0.0004053,120]
[334239967,1722855039815,-3001.5838816,0.0004053,120]
[334239969,1722855039827,-2667.9391871,0.0004058,60]
[334239976,1722855040235,-3394.09694339,0.0004058,60]
[334239977,1722855040245,-4328.07808491,0.000407,120]
[334239978,1722855040555,-402.3465429,0.00026829,2]
[334239979,1722855040565,-784.49691409,0.000407,120]
[334239980,1722855040576,-67755.68010106,0.000408,30]
[334239981,1722855040586,-150.0,0.000408,30]
[334239982,1722855040595,-10576.89,0.0004097,3]
[334239983,1722855040605,-154.52988381,0.00040995,2]
[334239984,1722855040615,-5000.0,0.00041,41]
[334239985,1722855040625,-10225.15,0.00041,120]
[334239986,1722855040635,-3000.0,0.00041058,60]
[334239987,1722855040645,-150.5,0.00041065,120]
[334239988,1722855040655,-150.5,0.00041075,120]
[334239989,1722855040667,-163.09,0.0004108,120]
[334239990,1722855040677,-150.5,0.00041085,120]
[334239991,1722855040687,-150.5,0.0004109,120]
[334239992,1722855040697,-500.0,0.00041094,31]
[334239993,1722855040706,-548.75530962,0.00041094,31]
[334239994,1722855040716,-500.0,0.00041095,31]
[334239995,1722855040726,-500.0,0.00041095,31]
[334239996,1722855040736,-500.0,0.00041095,2]
[334239997,1722855040745,-500.0,0.00041095,31]